Cogmind - Beta 14 @@@ ROGUE MODE // 2024.10.27 @ 01:14:51 Player: Ae Result: Destroyed by G-47 Trooper with Particle Gun Performance ------------- Evolutions (0) 0 Regions Visited (3) 600 Robots Destroyed (35) 175 Value Destroyed (832) 832 Prototype IDs (11) 220 Alien Tech Used (0) 0 Bonus (0) 0 TOTAL SCORE: 1827 Bonus ------- None Cogmind --------- Core Integrity 0/250 Matter 276/300 Energy 102/125 System Corruption 1% Temperature Warm (133) Movement Rolling (120) Ox1 Location -8/Recycling Parts ------- > --- POWER (1+2) ------ Light Ion Engine (+) Subdweller Power Source (+) > --- PROPULSION (2) --- Light Treads Subdweller Monowheel > --- UTILITY (2) ------ Large Storage Unit Power Bank > --- WEAPON (2) ------- Heavy Riot Gun Barrage Gun > --- INVENTORY (15) --- Subdweller Monowheel Subdweller Monowheel Subdweller Optics Subdweller Optics Subdweller Optics Seismic Detector Medium Armor Plating Scrap Shield Subdweller Laser Subdweller Laser Subdweller Laser Subdweller Machine Gun Makeshift Shrapnel Gun Peak State ------------ > --- POWER ------------ Light Ion Engine Subdweller Power Source Subdweller Power Source Makeshift Power Source > --- PROPULSION ------- Light Treads Subdweller Monowheel > --- UTILITY ---------- Large Storage Unit Power Bank > --- WEAPON ----------- Heavy Riot Gun Mining Laser > --- INVENTORY -------- Subdweller Monowheel Subdweller Monowheel Subdweller Optics Subdweller Optics Seismic Detector Backup Plating III Scrap Shield Subdweller Laser Subdweller Laser Subdweller Laser Subdweller Machine Gun Barrage Gun Makeshift Shrapnel Gun Grenade Launcher [Rating: 30] Favorites ----------- Power Subdweller Power Source Engine Subdweller Power Source Propulsion Light Treads Treads Light Treads Leg Aluminum Leg Wheel Subdweller Monowheel Utility Large Storage Unit Device Seismic Detector Storage Large Storage Unit Protection Backup Plating III Weapon Heavy Riot Gun Energy Gun Heavy Riot Gun Energy Cannon Beam Cannon Ballistic Gun Assault Rifle Launcher Grenade Launcher Special Weapon Mining Laser Build | -11 -10 -10 -8 ------- Run | Yrd Mat Sub Rec Slots Evolved . | . . . . Power . | . . . . Propulsion . | . . . . Utility . | . . . . Weapon . | . . . . Parts Attached 40 | 7 15 17 1 Power 6 | 1 1 4 . Engine 6 | 1 1 4 . Core . | . . . . Reactor . | . . . . Propulsion 7 | 2 2 3 . Treads 3 | . 1 2 . Leg 2 | 2 . . . Wheel 2 | . 1 1 . Hover . | . . . . Flight . | . . . . Utility 7 | 2 3 2 . Device 3 | 1 1 1 . Storage 3 | 1 2 . . Processor . | . . . . Hackware . | . . . . Protection 1 | . . 1 . Artifact . | . . . . Weapon 20 | 2 9 8 1 Energy Gun 4 | 1 . 3 . Energy Cannon 3 | . 3 . . Ballistic Gun 5 | 1 2 1 1 Ballistic Cannon . | . . . . Launcher 5 | . 3 2 . Special Weapon 3 | . 1 2 . Impact Weapon . | . . . . Slashing Weapon . | . . . . Piercing Weapon . | . . . . Special Melee Weapon . | . . . . Unidentified Prototypes . | . . . . Parts Lost 8 | . 2 3 3 Power 3 | . 1 . 2 Propulsion 2 | . 1 1 . Utility . | . . . . Weapon 3 | . . 2 1 Highest Loss Streak 3 | . 1 2 3 To Critical Strikes . | . . . . Average Slot Usage (%) 99 | . 99 98 99 Engine 21 | . 14 18 39 Treads 13 | . 2 24 10 Leg 8 | . 23 . . Wheel 3 | . 2 2 10 Device 8 | . 13 2 10 Storage 12 | . 14 13 10 Protection 4 | . . 10 . Energy Gun 8 | . . 13 10 Energy Cannon 5 | . 10 3 . Ballistic Gun 6 | . 13 4 . Launcher 2 | . . 1 9 Special Weapon 2 | . 2 3 . Peak Build Rating 30 | 8 10 30 30 Average Rating 16 | 5 8 18 29 On Entrance 11 | . 8 8 30 Naked Turns . | . . . . Heaviest Build 47 | 12 32 47 47 Greatest Support 40 | 20 20 40 20 Greatest Overweight (x) 3 | . 3 3 2 Average Overweight (x) . | . 1 . 2 Largest Inventory Capacity 15 | 8 15 15 15 Average Capacity 14 | 7 13 15 15 Most Carried 15 | 8 15 15 15 Average Carried 13 | 6 11 14 14 Final Capacity 15 | 8 15 15 15 Final Carried 15 | 8 14 15 14 Class Distribution -------------------- 71% | Mutant 28% | Scavenger-Mutant Dominant Class ---------------- Mutant | -10/Materials Mutant | -10/Subcaves Scavenger-Mutant | -8/Recycling Resources | -11 -10 -10 -8 ----------- Run | Yrd Mat Sub Rec Matter Collected 937 | 330 206 361 40 Remotely . | . . . . Salvage Created 1161 | 250 416 495 . Parts 63 | 18 20 25 . Haulers Intercepted 2 | . 2 . . Recyclers Shooed . | . . . . Parts Field Recycled . | . . . . Retrieved Matter . | . . . . Parts Self-Destructed 17 | . . 17 . Prevented . | . . . . Kills | -11 -10 -10 -8 ------- Run | Yrd Mat Sub Rec Combat Hostiles Destroyed 21 | . 11 10 . Guns 6 | . 1 5 . Cannons 4 | . 2 2 . AOE 11 | . 8 3 . Classes Destroyed 10 | 3 4 3 . Worker 4 | 2 2 . . Builder 1 | . 1 . . Tunneler 5 | 5 . . . Hauler 2 | . 2 . . Recycler 1 | 1 . . . Watcher 1 | . 1 . . Swarmer 3 | . . 3 . Grunt 12 | . 11 1 . Sentry 1 | . . 1 . Subdweller 5 | . . 5 . Best Kill Streak 6 | 6 4 3 . Combat Bots Only 4 | . 4 3 . Max Kills in Single Turn 2 | 1 2 1 . Gunslinging . | . . . . Exploded 2 | . 2 1 . Melee . | . . . . Uniques/NPCs Destroyed . | . . . . Combat | -11 -10 -10 -8 -------- Run | Yrd Mat Sub Rec Hostile Shots Fired 122 | . 51 57 14 Missed 35 | . 14 17 4 Damage Taken 1508 | . 528 708 272 Core 257 | . 95 147 15 Absorbed by Shields . | . . . . Core Remaining (%) 100 | 100 . . . Volleys Fired 151 | 20 75 53 3 Largest 2 | 2 2 2 2 Hottest 100 | 60 100 100 90 Shots Fired 210 | 40 93 71 6 Gun 117 | 40 30 43 4 Cannon 31 | . 20 11 . Launcher 20 | . 13 5 2 Special 42 | . 30 12 . Kinetic 61 | 20 30 10 1 Thermal 93 | 20 50 23 . Explosive 20 | . 13 5 2 Electromagnetic 36 | . . 33 3 Robot Hit Streak 21 | 6 8 21 3 Robot Miss Streak 4 | 4 3 2 1 Penetration Max . | . . . . Secondary Targets . | . . . . Shots Hit Robots 111 | 21 37 47 6 Core Hits 63 | 9 25 23 6 Critical Kills . | . . . . Critical Parts Destroyed . | . . . . Critical Strikes . | . . . . Melee Attacks . | . . . . Impact . | . . . . Slashing . | . . . . Piercing . | . . . . Sneak Attacks . | . . . . Combat Hostiles . | . . . . Follow-up Attacks . | . . . . Damage Inflicted 2776 | 269 1327 906 274 Guns 1074 | 269 208 548 49 Cannons 388 | . 212 176 . Explosions 1290 | . 883 182 225 Melee . | . . . . Ramming . | . . . . Kinetic 480 | 145 208 106 21 Thermal 630 | 124 236 270 . Explosive 1196 | . 883 88 225 Electromagnetic 470 | . . 442 28 Impact . | . . . . Slashing . | . . . . Piercing . | . . . . Highest Corruption 1 | . . . 1 Average Corruption 1 | . . . 1 Corruption Purged . | . . . . Corruption Blocked . | . . . . Overload Shots . | . . . . Overflow Damage 34 | . 33 . 1 Projectiles 4 | . 4 . . Explosions 30 | . 29 . 1 Melee . | . . . . Knockbacks . | . . . . Impact . | . . . . Kinetic . | . . . . Secondary . | . . . . Self-Inflicted Damage 243 | . 42 127 74 Shots 8 | . 3 3 2 Rammed . | . . . . Targets Rammed . | . . . . Kicked . | . . . . Crushed . | . . . . Highest Temperature 218 | . 218 20 124 Average Temperature 77 | . 85 10 66 Received Heat Transfer 474 | . 237 174 63 Effects 1 | . 1 . . Energy Bleed 1 | . 1 . . Siege Activations . | . . . . Robots Corrupted 2 | . . 2 . Combat Hostiles 2 | . . 2 . Parts Fried 4 | . . 4 . Impact Corruptions . | . . . . Robots Melted . | . . . . Combat Hostiles . | . . . . Parts Melted 4 | 1 . 3 . Heat Transferred 1239 | 275 494 470 . Parts Sabotaged . | . . . . Parts Stolen . | . . . . Parts Stripped . | . . . . Power Chain Reactions 2 | . . 2 . Alert | -11 -10 -10 -8 ------- Run | Yrd Mat Sub Rec Peak Influence 183 | 40 183 . 12 Initial 26 | . 26 . . Average 44 | 16 74 . . Maximum Alert Level . | . . . . Low Security (%) 100 | 100 100 . 100 Level 1 . | . . . . Level 2 . | . . . . Level 3 . | . . . . Level 4 . | . . . . Level 5 . | . . . . High Security . | . . . . Max Security . | . . . . Squads Dispatched 1 | . 1 . . Investigation 1 | . 1 . . Extermination . | . . . . Reinforcement . | . . . . Assault . | . . . . Garrison . | . . . . Intercept . | . . . . Searches Triggered . | . . . . Construction Impeded . | . . . . Haulers Reinforced . | . . . . Active Scanning Responses . | . . . . Cargo Convoy Interrupts . | . . . . Stealth | -11 -10 -10 -8 --------- Run | Yrd Mat Sub Rec Distress Signals . | . . . . Communications Jammed . | . . . . Distress Signals . | . . . . Times Spotted 37 | . 21 11 5 Peak Tracking Total 5 | . 4 4 5 Tactical Retreats 2 | . 1 1 . Traps | -11 -10 -10 -8 ------- Run | Yrd Mat Sub Rec Traps Triggered 3 | . 3 . . Indirectly . | . . . . Trap Hack Attempts . | . . . . Triggered . | . . . . Disarmed . | . . . . Reprogrammed . | . . . . Reused . | . . . . Traps Extracted . | . . . . Installed . | . . . . Triggered . | . . . . Machines | -11 -10 -10 -8 ---------- Run | Yrd Mat Sub Rec Machines Disabled 6 | . 5 1 . Max in Single Turn 1 | . 1 1 . Machines Repaired . | . . . . Machines Dismantled . | . . . . Machines Sabotaged . | . . . . Overloaded Fab Kills . | . . . . Hacking | -11 -10 -10 -8 --------- Run | Yrd Mat Sub Rec Machines Accessed 8 | . 7 1 . Terminals 6 | . 6 . . Fabricators . | . . . . Repair Stations 1 | . 1 . . Recycling Units . | . . . . Scanalyzers . | . . . . Garrison Access . | . . . . Total Hacks 23 | . 22 1 . Successful 10 | . 9 1 . Failed 13 | . 13 . . Catastrophic 3 | . 3 . . Database Lockouts . | . . . . Manual 20 | . 20 . . Terminals 21 | . 21 . . Fabricators . | . . . . Repair Stations 1 | . 1 . . Recycling Units . | . . . . Scanalyzers . | . . . . Garrison Access . | . . . . Terminal Hacks 2 | . 1 1 . Unreport Threat 1 | . 1 . . Derelict Proto ID Bank 1 | . . 1 . Fabricator Hacks . | . . . . Repair Station Hacks 1 | . 1 . . Refit 1 | . 1 . . Recycling Unit Hacks . | . . . . Scanalyzer . | . . . . Garrison Access Hacks . | . . . . Unauthorized Hacks 7 | . 7 . . Terminals 7 | . 7 . . Botnet 4 | . 4 . . Skim 3 | . 3 . . Fabricators . | . . . . Repair Stations . | . . . . Recycling Units . | . . . . Scanalyzers . | . . . . Garrison Access . | . . . . Data Cores Recovered . | . . . . Used . | . . . . Hacking Detections 6 | . 6 . . Full Trace Events 1 | . 1 . . Feedback Events . | . . . . Feedback Blocked . | . . . . Robot Schematics Acquired . | . . . . Robots Built . | . . . . Authchips . | . . . . Time . | . . . . Total Robot Build Rating . | . . . . Part Schematics Acquired . | . . . . Parts Built . | . . . . Authchips . | . . . . Time . | . . . . Total Part Build Rating . | . . . . Parts Repaired . | . . . . Time . | . . . . Parts Recycled . | . . . . Recycled Matter . | . . . . Retrieved Matter . | . . . . Retrieved Components . | . . . . Parts Scanalyzed . | . . . . Part Schematics Acquired . | . . . . Parts Damaged . | . . . . Bothacking | -11 -10 -10 -8 ------------ Run | Yrd Mat Sub Rec Used RIF Installer . | . . . . Robots Hacked . | . . . . Non-combat . | . . . . Combat . | . . . . Robot Hacks Applied . | . . . . Relay Couplers Released . | . . . . Fabnet Peak Effective % . | . . . . Robots Rewired . | . . . . Allies Hacked . | . . . . Hacks Repelled . | . . . . Allies | -11 -10 -10 -8 -------- Run | Yrd Mat Sub Rec Total Allies . | . . . . Largest Group . | . . . . Highest-Rated Group . | . . . . Highest-Rated Ally . | . . . . Total Orders . | . . . . Ally Attacks . | . . . . Total Damage . | . . . . Kills . | . . . . Allies Corrupted . | . . . . Allies Melted 1 | . . 1 . Intel | -11 -10 -10 -8 ------- Run | Yrd Mat Sub Rec Robot Analysis Total . | . . . . Derelict Logs Recovered 2 | . . 2 . Drone Launches . | . . . . Drone Recoveries . | . . . . Exploration | -11 -10 -10 -8 ------------- Run | Yrd Mat Sub Rec Turns Passed 4303 | 158 1482 1798 865 Spaces Moved 2018 | 71 787 893 267 Core 8 | 8 . . . Treads 1142 | . . 875 267 Legs 666 | 63 603 . . Wheels 202 | . 184 18 . Hover . | . . . . Flight . | . . . . Fastest Speed 50 | 50 110 125 320 Average Speed 184 | 112 152 176 320 Slowest Speed 320 | 120 190 320 320 Overloaded Moves . | . . . . Propulsion Burnouts . | . . . . Robots Hopped . | . . . . Cave-ins Triggered . | . . . . Exploration Rate (%) 53 | 5 97 51 59 Regions Visited 3 Branch Regions 2 Pre-discovered Areas 1 | . . 1 . Known Exits Taken 1 | . . 1 . Unknown Exits Taken 2 | 1 1 . . Scrap Searched . | . . . . Spaces Dug 10 | . 10 . . Terrain Destroyed 94 | . 43 38 13 Melee . | . . . . Projectile 14 | . 14 . . AOE 80 | . 29 38 13 Terrain Rammed . | . . . . Walls Destroyed . | . . . . Machines Disabled . | . . . . Actions | -11 -10 -10 -8 --------- Run | Yrd Mat Sub Rec Total 2315 | 107 913 1022 273 Wait 44 | . 17 27 . Move 2015 | 70 786 892 267 Hop . | . . . . Pick Up 40 | 10 11 18 1 Fast Attach 9 | 5 1 3 . Attach 10 | 2 3 4 1 Detach 2 | . 2 . . Swap 21 | . 11 10 . Drop 23 | . 7 15 1 Fire 151 | 20 75 53 3 Melee . | . . . . Ram . | . . . . Kick . | . . . . Crush . | . . . . Escape Stasis . | . . . . Rewire . | . . . . Trap . | . . . . Miscellaneous . | . . . . Route ------- -11/Scrapyard -10/Materials (discovered 5 exits: [*Mat x3] / [*Min] / *Sub) -10/Subcaves -8/Recycling (discovered 1 exit: [*Fac]) History --------- Turn | Location | Event 12 | -11/Scrapyard | Discovered new exit (range 14) 159 | -11/Scrapyard | Entered Materials 309 | -10/Materials | Build established: Mutant 386 | -10/Materials | Discovered new exit (range 4) 471 | -10/Materials | Discovered new exit (range 3) 1086 | -10/Materials | Discovered new exit (range 12) 1262 | -10/Materials | Discovered new exit (range 16) 1391 | -10/Materials | Discovered new exit (range 10) 1641 | -10/Materials | Entered Subcaves 1642 | -10/Subcaves | Shifting Twisted Machinery released Barrage Gun 1770 | -10/Subcaves | Core integrity fell below 50% 1862 | -10/Subcaves | Shifting Twisted Machinery released Barrage Gun 2219 | -10/Subcaves | Identified exit to Recycling 2338 | -10/Subcaves | Core integrity fell below 20% 2437 | -10/Subcaves | Visited 4L-MR0's lab 2579 | -10/Subcaves | Found Power Bank 3074 | -10/Subcaves | Attached Power Bank, gained temporary slots: Power x3 3364 | -10/Subcaves | Build established: Scavenger-Mutant 3439 | -10/Subcaves | Entered Recycling 3841 | -8/Recycling | Discovered new exit (range 12) 4304 | -8/Recycling | Destroyed by G-47 Trooper with Particle Gun Last Messages --------------- GOAL=ESCAPE 03580_ Acquired 40 matter. 03727_ Dropped Backup Plating III. 03728_ Acquired Med. Armor Plating. 03736_ R-06 Scavenger collects Backup Plating III. 03841_ EXIT=FOUND 04293_ G-47 Trooper springs to life. 04293_ Mak. Power Source destroyed. 04294_ I-25 Savior springs to life. 04294_ L-31 Rogue springs to life. 04294_ G-47 Trooper springs to life. 04295_ B-36 Bruiser springs to life. 04298_ Destroyed Lgt. Nuclear Core. 04299_ Grenade Launcher destroyed. 04300_ Sub. Power Source destroyed. 04300_ System corrupted by crushing effect (+1). 04300_ Knocked back. 04300_ U-05 Engineer lays Concrete. 04301_ Temporary Power slot lost. 04302_ U-05 Engineer lays Concrete. Map ----- +----------------------------------------------------+ | ?????????????????????????????????????????????????? | | ?????????????????????????????????????????????????? | | ?????????????????????????????????????????????????? | | ?????????????????????????????????????????????????? | | ?????????????????????????????????????????????????? | | ?????????????????????????????????????????????????? | | ?????????????????????????????????????????????????? | | ?????????????????????????????????????????????????? | | ?????#####???????????????????????????????????????? | | ?????#===#???????????????????????????????????????? | | ######===###########?????????????????????????????? | | # #?????????????????????????????? | | # #?????????????????????????????? | | # #?????????????????????????????? | | # #!! ######## ##?????###+#####??????????????? | | # #!!!#?????# #####? u #??????????????? | | # #####?????# ## bg g #??????????????? | | # #?????????# ### ## u u #??????????????? | | # #???########+##?# ##s Y l###????????????? | | # #???# ### ## Y!! + ?????????????? | | #???# ## # gg% ]#??????????????? | | ##### ### # g #??????????????? | | + #!! % ! +??????????????? | | # #!! # Yg #??????????????? | | # # ! lb #??????????????????? | | + ### @ #??????????????????? | | # #?# ####??????????????????? | | ############# uu#?????????????????????? | | ????????????????????? | | ??????????????????? | | ????????????????? | | ??????????????? | | #????????????? | | #????????????? | | r #????????????? | | #########+######## #????????????? | | ##???????? ??????# ?????????????? | | #????????? ????###/######???????? | | #????????? ????#= ! #???????? | | #### #????????? ?????# ????????? | | #??# #???????????????# ????????? | | #??###### #???????????????? % ! ?????????? | | ##### #?????###+###?????????????? ?????????? | | ###?# #?????# ##?????????????? ! ??????????? | | """## #?????#""" "#?#######?????? ??????????? | | "T"##+#####?#""" T#?# %#??????? ????????#??? | | #?#""" "#?# #??????? ??????[[#??? | | #?# ##?# [ #??######+######[ #### | | "" """ #?#""" #??# #??# | | "" """ #?#""" #??# % #??# | +----------------------------------------------------+ Best States ------------- Heat Dissipation 25 Energy Generation 40 Energy Capacity 395 Matter Stores 300 Matter Capacity 300 Sight Range 16 Terrain Scan Density 10 Armor Coverage 80 Evasion (%) 55 Recoil Reduction 2 Item Schematics ----------------- None Robot Schematics ------------------ None Fabricated ------------ Nothing Alien Tech Used ----------------- None Achievements -------------- None Challenges ------------ None Game ------ Seed MicrowarpFlightStorm Manual? 0 Play Time 00:38:11 Cumulative 87.1 hours Start 2024.10.27 @ 00:35:04 End 2024.10.27 @ 01:14:51 Sessions 1 Manual Loads 0 Difficulty Rogue Special Mode None Game No. 144 Rogue 116 Adventurer 28 Explorer 0 Win Type - Total 0 Types 0/0/0/0/0/0/0/0/0 Lore% 31 Gallery% 31 Achievement% 32 Wizard Run 0 Options --------- Layout 0 ASCII 0 Keyboard 1 Movement Numpad Keybinds 0 Fullscreen 2 Font 36/Smallcaps Map View 76x50 Zoom Use 0% Tactical HUD 1 Map Filters NONE Filters NONE Steam 1 RUN: 761860e0-71da-4af4-92a2-8fbfa1ff68f8